Workbook

Sheet штатний розпис
A1: ПОГОДЖЕНО | E1: ЗАТВЕРДЖУЮ
A2: Штат у кількості 241 штатної одиниці з місячним фондом заробітної плати за посадовими окладами 639005 (шістсот тридцять дев'ять тисяч п'ять) гривень | E2: Штат у кількості 241 штатної одиниці з місячним фондом заробітної плати за посадовими окладами 639005 (шістсот тридцять дев'ять тисяч п'ять) гривень
A3: Заступник Міністра фінансів України | E3: Заступник Міністра - керівник апарату
A4: _______________О. С. Яременко | E4: __________________С.Л. Коломієць
A6: __________________2016 р. | E6: _______________ 2016 р.
B8: М.П. | F8: М.П.
A11: Штатний розпис на 2016 рік
A12: центрального апарату Міністерства екології та природних ресурсів України
A14: Підстава: постанова Кабінету Міністрів України від 09.12.2015 № 1013 “Про упорядкування структури заробітної плати, особливості проведення індексації та внесення змін до деяких нормативно-правових актів”
A16: Вводиться в дію з 01 грудня 2015 року
F17: Фонд заробітної плати на місяць за посадовими окладами (грн.)
A18: № | B18: Назва структурного | D18: Кількість | E18: Посадо-
A19: з/п | B19: підрозділу та посад | D19: штатних | E19: вий оклад
D20: посад
E21: (грн.)
A22: 1 | B22: 2 | D22: 3 | E22: 4 | F22: 5
B24: 1. Керівництво міністерства
A26: 1 | B26: Міністр | D26: 1 | E26: 7636 | F26: =E26 -> 7636 | G26: **
A27: 2 | B27: Перший заступник Міністра | D27: 1 | E27: 6640 | F27: 6640 | G27: **
A28: 3 | B28: Заступник Міністра - керівник апарату | D28: 1 | E28: 6225 | F28: 6225
A29: 4 | B29: Заступник Міністра з питань європейської інтеграції | D29: 1 | E29: 6225 | F29: 6225 | G29: **
A30: 5 | B30: Заступник Міністра | D30: 1 | E30: 6225 | F30: 6225 | G30: **
A31: 6 | B31: Заступник Міністра | D31: 1 | E31: 6225 | F31: 6225 | G31: **
B33: Разом: | D33: =SUM(D26:D31) -> 6 | E33: =SUM(E26:E31) -> 39176 | F33: =SUM(F26:F31) -> 39176
B35: 2. Департамент організаційної діяльності
A37: 7 | B37: Директор департаменту | D37: 1 | E37: 4151 | F37: =E37 -> 4151
B39: 2.1. Відділ документального забезпечення та контролю
A41: 8 | B41: Начальник відділу | D41: 1 | E41: 3103 | F41: =E41 -> 3103
A42: 9 | B42: Головний спеціаліст | D42: 1 | E42: 2231 | F42: 2231
A43: 10 | B43: Головний спеціаліст | D43: 1 | E43: 2231 | F43: 2231
A44: 11 | B44: Головний спеціаліст | D44: 1 | E44: 2231 | F44: 2231
A45: 12 | B45: Головний спеціаліст | D45: 1 | E45: 2231 | F45: 2231
A46: 13 | B46: Головний спеціаліст | D46: 1 | E46: 2231 | F46: 2231
B47: Разом: | D47: =SUM(D41:D46) -> 6 | E47: =SUM(E41:E46) -> 14258 | F47: =SUM(F41:F46) -> 14258
B49: 2.2. Організаційний відділ
A51: 14 | B51: Заступник директора департаменту - начальник відділу | D51: 1 | E51: 4025 | F51: =E51 -> 4025
A52: 15 | B52: Головний спеціаліст | D52: 1 | E52: 2231 | F52: =E52 -> 2231
A53: 16 | B53: Головний спеціаліст | D53: 1 | E53: 2231 | F53: =E53 -> 2231
A54: 17 | B54: Головний спеціаліст | D54: 1 | E54: 2231 | F54: =E54 -> 2231
A55: 18 | B55: Головний спеціаліст | D55: 1 | E55: 2231 | F55: =E55 -> 2231
B56: Разом: | D56: =SUM(D51:D55) -> 5 | E56: =SUM(E51:E55) -> 12949 | F56: =SUM(F51:F55) -> 12949
B58: 2.3. Відділ забезпечення діяльності Міністра (патронатна служба)
A60: 19 | B60: Начальник відділу | D60: 1 | E60: 3103 | F60: =E60 -> 3103
A61: 20 | B61: Помічник Міністра | D61: 1 | E61: 3000 | F61: =E61 -> 3000
A62: 21 | B62: Помічник Міністра | D62: 1 | E62: 3000 | F62: =E62 -> 3000
A63: 22 | B63: Радник Міністра | D63: 1 | E63: 2231 | F63: =E63 -> 2231
A64: 23 | B64: Радник Міністра | D64: 1 | E64: 2231 | F64: =E64 -> 2231
B65: Разом: | D65: =SUM(D60:D64) -> 5 | E65: =SUM(E60:E64) -> 13565 | F65: =SUM(F60:F64) -> 13565
B67: 2.4. Відділ зв’язків з громадськістю та роботи із ЗМІ
A69: 24 | B69: Заступник директора департаменту - начальник відділу | D69: 1 | E69: 4025 | F69: =E69 -> 4025
A70: 25 | B70: Головний спеціаліст | D70: 1 | E70: 2231 | F70: =E70 -> 2231
A71: 26 | B71: Головний спеціаліст | D71: 1 | E71: 2231 | F71: =E71 -> 2231
A72: 27 | B72: Головний спеціаліст | D72: 1 | E72: 2231 | F72: =E72 -> 2231
A73: 28 | B73: Головний спеціаліст | D73: 1 | E73: 2231 | F73: =E73 -> 2231
B74: Разом: | D74: =SUM(D69:D73) -> 5 | E74: =SUM(E69:E73) -> 12949 | F74: =SUM(F69:F73) -> 12949
B76: Разом по департаменту: | D76: =D37+D47+D56+D65+D74 -> 22 | E76: =E37+E47+E56+E65+E74 -> 57872 | F76: =F37+F47+F56+F65+F74 -> 57872
B78: 3. Департамент охорони природних ресурсів
A80: 29 | B80: Директор департаменту | D80: 1 | E80: 4980 | F80: =E80 -> 4980 | G80: *
B82: 3.1. Відділ водних екосистем та ресурсів
A84: 30 | B84: Начальник відділу | D84: 1 | E84: 3103 | F84: =E84 -> 3103
A85: 31 | B85: Головний спеціаліст | D85: 1 | E85: 2231 | F85: =E85 -> 2231
A86: 32 | B86: Головний спеціаліст | D86: 1 | E86: 2231 | F86: =E86 -> 2231
A87: 33 | B87: Головний спеціаліст | D87: 1 | E87: 2231 | F87: =E87 -> 2231
A88: 34 | B88: Головний спеціаліст | D88: 1 | E88: 2231 | F88: =E88 -> 2231
B89: Разом: | D89: =SUM(D84:D88) -> 5 | E89: =SUM(E84:E88) -> 12027 | F89: =SUM(F84:F88) -> 12027
B91: 3.2. Відділ рослинного світу
A93: 35 | B93: Заступник директора департаменту - начальник відділу | D93: 1 | E93: 4025 | F93: =E93 -> 4025
A94: 36 | B94: Головний спеціаліст | D94: 1 | E94: 2231 | F94: =E94 -> 2231
A95: 37 | B95: Головний спеціаліст | D95: 1 | E95: 2231 | F95: =E95 -> 2231
A96: 38 | B96: Головний спеціаліст | D96: 1 | E96: 2231 | F96: =E96 -> 2231
A97: 39 | B97: Головний спеціаліст | D97: 1 | E97: 2231 | F97: =E97 -> 2231
B98: Разом: | D98: =SUM(D93:D97) -> 5 | E98: =SUM(E93:E97) -> 12949 | F98: =SUM(F93:F97) -> 12949
B100: 3.3. Відділ тваринного світу
A102: 40 | B102: Начальник відділу | D102: 1 | E102: 3103 | F102: =E102 -> 3103
A103: 41 | B103: Головний спеціаліст | D103: 1 | E103: 2231 | F103: =E103 -> 2231
A104: 42 | B104: Головний спеціаліст | D104: 1 | E104: 2231 | F104: =E104 -> 2231
A105: 43 | B105: Головний спеціаліст | D105: 1 | E105: 2231 | F105: =E105 -> 2231
A106: 44 | B106: Головний спеціаліст | D106: 1 | E106: 2231 | F106: =E106 -> 2231
B107: Разом: | D107: =SUM(D102:D106) -> 5 | E107: =SUM(E102:E106) -> 12027 | F107: =SUM(F102:F106) -> 12027
B109: 3.4. Відділ розвитку екомережі та біобезпеки
A111: 45 | B111: Заступник директора департаменту - начальник відділу | D111: 1 | E111: 4025 | F111: =E111 -> 4025
A112: 46 | B112: Головний спеціаліст | D112: 1 | E112: 2231 | F112: =E112 -> 2231
A113: 47 | B113: Головний спеціаліст | D113: 1 | E113: 2231 | F113: =E113 -> 2231
A114: 48 | B114: Головний спеціаліст | D114: 1 | E114: 2231 | F114: =E114 -> 2231
A115: 49 | B115: Головний спеціаліст | D115: 1 | E115: 2231 | F115: =E115 -> 2231
B116: Разом: | D116: =SUM(D111:D115) -> 5 | E116: =SUM(E111:E115) -> 12949 | F116: =SUM(F111:F115) -> 12949
B118: 3.5. Сектор земельних ресурсів
A120: 50 | B120: Завідувач сектору | D120: 1 | E120: 2619 | F120: =E120 -> 2619
A121: 51 | B121: Головний спеціаліст | D121: 1 | E121: 2231 | F121: =E121 -> 2231
B122: Разом: | D122: =SUM(D120:D121) -> 2 | E122: =SUM(E120:E121) -> 4850 | F122: =SUM(F120:F121) -> 4850
B124: Разом по департаменту: | D124: =D80+D89+D98+D107+D116+D122 -> 23 | E124: =E80+E89+E98+E107+E116+E122 -> 59782 | F124: =F80+F89+F98+F107+F116+F122 -> 59782
B126: 4. Департамент заповідної справи
A128: 52 | B128: Директор департаменту | D128: 1 | E128: 4151 | F128: =E128 -> 4151
A129: 53 | B129: Заступник директора департаменту | D129: 1 | E129: 4025 | F129: =E129 -> 4025
B131: 4.1. Відділ організації та використання природно-заповідного фонду
A133: 54 | B133: Начальник відділу | D133: 1 | E133: 3103 | F133: =E133 -> 3103
A134: 55 | B134: Головний спеціаліст | D134: 1 | E134: 2231 | F134: =E134 -> 2231
A135: 56 | B135: Головний спеціаліст | D135: 1 | E135: 2231 | F135: =E135 -> 2231
A136: 57 | B136: Головний спеціаліст | D136: 1 | E136: 2231 | F136: =E136 -> 2231
A137: 58 | B137: Головний спеціаліст | D137: 1 | E137: 2231 | F137: =E137 -> 2231
B138: Разом: | D138: =SUM(D133:D137) -> 5 | E138: =SUM(E133:E137) -> 12027 | F138: =SUM(F133:F137) -> 12027
B140: 4.2. Відділ розвитку природно-заповідного фонду
A142: 59 | B142: Начальник відділу | D142: 1 | E142: 3103 | F142: =E142 -> 3103
A143: 60 | B143: Головний спеціаліст | D143: 1 | E143: 2231 | F143: =E143 -> 2231
A144: 61 | B144: Головний спеціаліст | D144: 1 | E144: 2231 | F144: =E144 -> 2231
A145: 62 | B145: Головний спеціаліст | D145: 1 | E145: 2231 | F145: =E145 -> 2231
A146: 63 | B146: Головний спеціаліст | D146: 1 | E146: 2231 | F146: =E146 -> 2231
B147: Разом: | D147: =SUM(D142:D146) -> 5 | E147: =SUM(E142:E146) -> 12027 | F147: =SUM(F142:F146) -> 12027
B149: 4.3. Відділ управління установами природно-заповідного фонду
A151: 64 | B151: Начальник відділу | D151: 1 | E151: 3103 | F151: =E151 -> 3103
A152: 65 | B152: Головний спеціаліст | D152: 1 | E152: 2231 | F152: 2231
A153: 66 | B153: Головний спеціаліст | D153: 1 | E153: 2231 | F153: 2231
A154: 67 | B154: Головний спеціаліст | D154: 1 | E154: 2231 | F154: 2231
A155: 68 | B155: Головний спеціаліст | D155: 1 | E155: 2231 | F155: 2231
A156: 69 | B156: Головний спеціаліст | D156: 1 | E156: 2231 | F156: 2231
B157: Разом: | D157: =SUM(D151:D156) -> 6 | E157: =SUM(E151:E156) -> 14258 | F157: =SUM(F151:F156) -> 14258
B159: 4.4. Відділ служби державної охорони та державного кадастру територій та об’єктів природно-заповідного фонду
A161: 70 | B161: Заступник директора департаменту - начальник відділу | D161: 1 | E161: 4025 | F161: =E161 -> 4025
A162: 71 | B162: Головний спеціаліст | D162: 1 | E162: 2231 | F162: =E162 -> 2231
A163: 72 | B163: Головний спеціаліст | D163: 1 | E163: 2231 | F163: =E163 -> 2231
A164: 73 | B164: Головний спеціаліст | D164: 1 | E164: 2231 | F164: =E164 -> 2231
A165: 74 | B165: Головний спеціаліст | D165: 1 | E165: 2231 | F165: =E165 -> 2231
B166: Разом: | D166: =SUM(D161:D165) -> 5 | E166: =SUM(E161:E165) -> 12949 | F166: =SUM(F161:F165) -> 12949
B168: Разом по департаменту: | D168: =D128+D129+D138+D147+D157+D166 -> 23 | E168: =E128+E129+E138+E147+E157+E166 -> 59437 | F168: =F128+F129+F138+F147+F157+F166 -> 59437
B170: 5. Департамент екологічної безпеки та поводження з відходами
A172: 75 | B172: Директор департаменту | D172: 1 | E172: 4151 | F172: =E172 -> 4151
A173: 76 | B173: Заступник директора департаменту | D173: 1 | E173: 4025 | F173: =E173 -> 4025
B175: 5.1. Відділ поводження з відходами та небезпечними речовинами
A177: 77 | B177: Заступник директора департаменту - начальник відділу | D177: 1 | E177: 4025 | F177: =E177 -> 4025
A178: 78 | B178: Головний спеціаліст | D178: 1 | E178: 2231 | F178: =E178 -> 2231
A179: 79 | B179: Головний спеціаліст | D179: 1 | E179: 2231 | F179: =E179 -> 2231
A180: 80 | B180: Головний спеціаліст | D180: 1 | E180: 2231 | F180: =E180 -> 2231
A181: 81 | B181: Головний спеціаліст | D181: 1 | E181: 2231 | F181: =E181 -> 2231
B182: Разом: | D182: =SUM(D177:D181) -> 5 | E182: =SUM(E177:E181) -> 12949 | F182: =SUM(F177:F181) -> 12949
B184: 5.2. Відділ контролю за обігом пестицидів та агрохімікатів
A186: 82 | B186: Начальник відділу | D186: 1 | E186: 3103 | F186: =E186 -> 3103
A187: 83 | B187: Головний спеціаліст | D187: 1 | E187: 2231 | F187: =E187 -> 2231
A188: 84 | B188: Головний спеціаліст | D188: 1 | E188: 2231 | F188: =E188 -> 2231
A189: 85 | B189: Головний спеціаліст | D189: 1 | E189: 2231 | F189: =E189 -> 2231
A190: 86 | B190: Головний спеціаліст | D190: 1 | E190: 2231 | F190: =E190 -> 2231
B191: Разом: | D191: =SUM(D186:D190) -> 5 | E191: =SUM(E186:E190) -> 12027 | F191: =SUM(F186:F190) -> 12027
B193: 5.3. Відділ дозвільно-ліцензійної діяльності
A195: 87 | B195: Начальник відділу | D195: 1 | E195: 3103 | F195: =E195 -> 3103
A196: 88 | B196: Головний спеціаліст | D196: 1 | E196: 2231 | F196: =E196 -> 2231
A197: 89 | B197: Головний спеціаліст | D197: 1 | E197: 2231 | F197: =E197 -> 2231
A198: 90 | B198: Головний спеціаліст | D198: 1 | E198: 2231 | F198: =E198 -> 2231
A199: 91 | B199: Провідний спеціаліст | D199: 1 | E199: 1745 | F199: =E199 -> 1745
B200: Разом: | D200: =SUM(D195:D199) -> 5 | E200: =SUM(E195:E199) -> 11541 | F200: =SUM(F195:F199) -> 11541
B202: 5.4. Відділ екологічної оцінки (експертизи)
A204: 92 | B204: Начальник відділу | D204: 1 | E204: 3103 | F204: =E204 -> 3103
A205: 93 | B205: Головний спеціаліст | D205: 1 | E205: 2231 | F205: =E205 -> 2231
A206: 94 | B206: Головний спеціаліст | D206: 1 | E206: 2231 | F206: =E206 -> 2231
A207: 95 | B207: Головний спеціаліст | D207: 1 | E207: 2231 | F207: =E207 -> 2231
A208: 96 | B208: Провідний спеціаліст | D208: 1 | E208: 1745 | F208: =E208 -> 1745
B209: Разом: | D209: =SUM(D204:D208) -> 5 | E209: =SUM(E204:E208) -> 11541 | F209: =SUM(F204:F208) -> 11541
B211: Разом по департаменту: | D211: =D172+D173+D200+D209+D182+D191 -> 22 | E211: =E172+E173+E200+E209+E182+E191 -> 56234 | F211: =F172+F173+F200+F209+F182+F191 -> 56234
B213: 6. Департамент кліматичної політики
A215: 97 | B215: Директор департаменту | D215: 1 | E215: 4151 | F215: =E215 -> 4151
B217: 6.1. Відділ координації екологічних інвестицій
A219: 98 | B219: Заступник директора департаменту - начальник відділу | D219: 1 | E219: 4025 | F219: =E219 -> 4025
A220: 99 | B220: Головний спеціаліст | D220: 1 | E220: 2231 | F220: =E220 -> 2231
A221: 100 | B221: Головний спеціаліст | D221: 1 | E221: 2231 | F221: =E221 -> 2231
A222: 101 | B222: Головний спеціаліст | D222: 1 | E222: 2231 | F222: =E222 -> 2231
A223: 102 | B223: Головний спеціаліст | D223: 1 | E223: 2231 | F223: =E223 -> 2231
B224: Разом: | D224: =SUM(D219:D223) -> 5 | E224: =SUM(E219:E223) -> 12949 | F224: =SUM(F219:F223) -> 12949
B226: 6.2. Відділ впровадження екологічних проектів
A228: 103 | B228: Начальник відділу | D228: 1 | E228: 3103 | F228: =E228 -> 3103
A229: 104 | B229: Головний спеціаліст | D229: 1 | E229: 2231 | F229: =E229 -> 2231
A230: 105 | B230: Головний спеціаліст | D230: 1 | E230: 2231 | F230: =E230 -> 2231
A231: 106 | B231: Головний спеціаліст | D231: 1 | E231: 2231 | F231: =E231 -> 2231
A232: 107 | B232: Головний спеціаліст | D232: 1 | E232: 2231 | F232: =E232 -> 2231
B233: Разом: | D233: =SUM(D228:D232) -> 5 | E233: =SUM(E228:E232) -> 12027 | F233: =SUM(F228:F232) -> 12027
B235: 6.3. Відділ реєстру та кліматичної звітності
A237: 108 | B237: Начальник відділу | D237: 1 | E237: 3103 | F237: =E237 -> 3103
A238: 109 | B238: Заступник начальника відділу | D238: 1 | E238: 3000 | F238: 3000
A239: 110 | B239: Головний спеціаліст | D239: 1 | E239: 2231 | F239: 2231
A240: 111 | B240: Головний спеціаліст | D240: 1 | E240: 2231 | F240: 2231
A241: 112 | B241: Головний спеціаліст | D241: 1 | E241: 2231 | F241: 2231
A242: 113 | B242: Головний спеціаліст | D242: 1 | E242: 2231 | F242: 2231
A243: 114 | B243: Головний спеціаліст | D243: 1 | E243: 2231 | F243: 2231
B244: Разом: | D244: =SUM(D237:D243) -> 7 | E244: =SUM(E237:E243) -> 17258 | F244: =SUM(F237:F243) -> 17258
B246: 6.4. Відділ кліматичної стратегії
A248: 115 | B248: Заступник директора департаменту - начальник відділу | D248: 1 | E248: 4025 | F248: =E248 -> 4025
A249: 116 | B249: Головний спеціаліст | D249: 1 | E249: 2231 | F249: =E249 -> 2231
A250: 117 | B250: Головний спеціаліст | D250: 1 | E250: 2231 | F250: =E250 -> 2231
A251: 118 | B251: Головний спеціаліст | D251: 1 | E251: 2231 | F251: =E251 -> 2231
A252: 119 | B252: Головний спеціаліст | D252: 1 | E252: 2231 | F252: =E252 -> 2231
B253: Разом: | D253: =SUM(D248:D252) -> 5 | E253: =SUM(E248:E252) -> 12949 | F253: =SUM(F248:F252) -> 12949
B255: 6.5. Сектор впровадження системи торгівлі квотами на викиди парникових газів
A257: 120 | B257: Завідувач сектору | D257: 1 | E257: 2619 | F257: =E257 -> 2619
A258: 121 | B258: Головний спеціаліст | D258: 1 | E258: 2231 | F258: =E258 -> 2231
A259: 122 | B259: Головний спеціаліст | D259: 1 | E259: 2231 | F259: =E259 -> 2231
B260: Разом: | D260: =SUM(D257:D259) -> 3 | E260: =SUM(E257:E259) -> 7081 | F260: =SUM(F257:F259) -> 7081
B262: Разом по департаменту: | D262: =D215+D224+D233+D244+D253+D260 -> 26 | E262: =E215+E224+E233+E244+E253+E260 -> 66415 | F262: =F215+F224+F233+F244+F253+F260 -> 66415
B264: 7. Юридичний департамент
A266: 123 | B266: Директор департаменту | D266: 1 | E266: 4151 | F266: =E266 -> 4151
A267: 124 | B267: Заступник директора департаменту | D267: 1 | E267: 4025 | F267: =E267 -> 4025
B269: 7.1. Відділ правового забезпечення та представництва інтересів міністерства в судових та правоохоронних органах
A271: 125 | B271: Начальник відділу | D271: 1 | E271: 3103 | F271: =E271 -> 3103
A272: 126 | B272: Головний юрисконсульт | D272: 1 | E272: 2231 | F272: =E272 -> 2231
... 173 more rows

Sheet зарплата міністра
A2: Інформація
A3: щодо заробітної плати Міністра екології та природних ресурсів за 2015 рік
O4: (грн)
A5: Прізвище та ініціали | B5: Період роботи у 2015 році | C5: Відпрцьо-ваний час, дні | D5: Посадовий оклад | E5: Надбавка за ранг | F5: Надбавка за вислугу років | G5: Надбавка за особливий характер роботи та інтенсивність праці | H5: Оплата відряджень | I5: Оплата відпустки | J5: Матеріальна допомога для оздоровлення при наданні щорічної відпустки | K5: Компенсація невико-ристаної відпустки | L5: Оплата лікарняних | M5: Надбавка державному експерту з питань таємниць | N5: Сума індексації грошових доходів | O5: Фонд заробітної плати за рік
A7: Шевченко І.А. | B7: січень | C7: 17 | D7: =6109-643.05 -> 5465.95 | O7: =D7+E7+F7+G7+H7+I7+J7+K7+L7+M7+N7 -> 5465.95
B8: лютий | C8: 21 | D8: 6109 | O8: 6109
B9: березень | C9: 21 | D9: 6109 | O9: 6109
B10: квітень | C10: 13 | D10: =2909.05+290.9+581.81 -> 3781.76 | H10: =872.71+581.81+872.71 -> 2327.23 | O10: 6108.99
B11: травень | C11: 15 | D11: 5090.83 | O11: 5090.83
B12: червень | C12: 19 | D12: =610.9+5192.65 -> 5803.55 | H12: 316.88 | O12: 6120.43
B13: липень | C13: 2 | D13: 531.22 | O13: 531.22
B14: разом | C14: =SUM(C7:C13) -> 108 | D14: =SUM(D7:D13) -> 32891.31 | H14: =SUM(H7:H13) -> 2644.11 | O14: =SUM(O7:O13) -> 35535.42
A16: Примітка: відповідно до постанови Кабінету Міністрів України від 14.02.2015 № 43 «Питання оплати праці членів Кабінету Міністрів України, керівників центральних органів виконавчої влади та інших державних органів у 2015 році» місячна заробітна плата Міністру екології та природних ресурсів України нараховувалася лише в розмірі посадового окладу.
B18: Заступник директора Департаменту економіки та фінансів | K18: О.В. Іоніна
B19: Головний бухгалтер | K19: С.А. Руренко
